fUSD/lending_fUSD_20241122
["ID","MTS","AMOUNT","RATE_DAILY","PERIOD"]
[343008710,1732273835461,-500.0,0.00096999,120]
[343008711,1732273835470,-500.0,0.00096999,120]
[343008712,1732273835479,-500.0,0.00096999,120]
[343008713,1732273835489,-261.16,0.00096999,120]
[343008714,1732273835498,-500.0,0.00096999,120]
[343008715,1732273835507,-500.0,0.00096999,120]
[343008716,1732273835517,-500.0,0.00096999,120]
[343008717,1732273835527,-500.0,0.00096999,120]
[343008718,1732273835537,-500.0,0.00096999,120]
[343008719,1732273835547,-500.0,0.00096999,120]
[343008720,1732273835556,-500.0,0.00096999,120]
[343008721,1732273835566,-500.0,0.00096999,120]
[343008722,1732273835576,-500.0,0.00096999,120]
[343008723,1732273835586,-500.0,0.00096999,120]
[343008724,1732273835595,-174.86,0.00096999,120]
[343008725,1732273835607,-228.62,0.00096999,120]
[343008726,1732273835617,-500.0,0.00096999,120]
[343008727,1732273835626,-500.0,0.00096999,120]
[343008728,1732273835636,-500.0,0.00096999,120]
[343008729,1732273835645,-500.0,0.00096999,120]
[343008730,1732273835655,-500.0,0.00096999,120]
[343008731,1732273835664,-500.0,0.00096999,120]
[343008732,1732273835674,-500.0,0.00096999,120]
[343008733,1732273835683,-500.0,0.00096999,120]
[343008734,1732273835692,-500.0,0.00096999,120]
[343008735,1732273835702,-500.0,0.00096999,120]
[343008736,1732273835711,-500.0,0.00096999,120]
[343008737,1732273835721,-500.0,0.00096999,120]
[343008738,1732273835730,-555.39,0.00096999,120]
[343008739,1732273835740,-500.0,0.00096999,120]
[343008740,1732273835749,-500.0,0.00096999,120]
[343008741,1732273835758,-582.97,0.00096999,120]
[343008742,1732273835767,-572.0,0.00097,75]
[343008743,1732273835776,-153048.64640523,0.00097,40]
[343008744,1732273835786,-13038.12233303,0.00097,61]
[343008745,1732273835795,-29022.35032201,0.00097,120]
[343008746,1732273836394,-787.81604986,0.000969,2]
[343008747,1732273836405,-418.3735935,0.000969,2]
[343008748,1732273836416,-1017.3431387,0.000969,2]
[343008766,1732273838243,-550.13534118,0.000969,2]
[343008767,1732273838252,-643.58,0.00096986,120]
[343008768,1732273838263,-500.0,0.00096986,120]
[343008769,1732273838272,-1000.0,0.00096986,120]
[343008770,1732273838282,-500.0,0.00096986,120]
[343008771,1732273838292,-500.0,0.00096986,120]
[343008772,1732273838302,-383.04151432,0.00096986,120]
[343008773,1732273838312,-33123.2431445,0.00097,120]
[343008774,1732273838324,-5088.55846786,0.00097,120]
[343008775,1732273838373,-991.71449815,0.00097,120]
[343008776,1732273838385,-3404.8564865,0.00097,120]
[343008777,1732273838396,-36340.12586282,0.00097,120]
[343008778,1732273838406,-34929.85328609,0.00097,120]
[343008779,1732273838417,-437.44,0.00097,120]
[343008780,1732273838428,-570.13742456,0.00097,120]
[343008781,1732273838439,-33255.0,0.00097,120]
[343008782,1732273838451,-11913.6794435,0.00097,120]
[343008783,1732273838472,-7038.6011,0.00097,120]
[343008784,1732273838547,-216007.2757692,0.00097,120]
[343008785,1732273838560,-2201.11729911,0.00097,120]
[343008787,1732273838621,-693646.89567754,0.00097,120]
[343008789,1732273838631,-337495.88106514,0.00097,120]
[343008829,1732273840224,-500.0,0.00096986,120]
[343008830,1732273840233,-500.0,0.00096986,120]
[343008831,1732273840242,-500.0,0.00096986,120]
[343008832,1732273840251,-87040.0,0.00097,120]
[343008833,1732273840265,-295490.97188556,0.00097,120]
[343008834,1732273840331,-2314.74300993,0.00097,120]
[343008835,1732273840423,-50951.58888072,0.00097,120]
[343008836,1732273840435,-5921.08993869,0.00097,120]
[343008837,1732273840446,-2607.20000779,0.00097,120]
[343008838,1732273840458,-684.1663532,0.00097,120]
[343008842,1732273843160,-472.0,0.0009589,120]
[343008843,1732273843170,-70.834826,0.00096986,120]
[343008844,1732273843182,-429.165174,0.00096986,120]
[343008845,1732273843191,-470.74982571,0.00096986,120]
[343008846,1732273843204,-46.90017429,0.00096986,120]
[343008848,1732273843212,-1248.60482571,0.00097,120]
[343008849,1732273843224,-88240.74425803,0.00097,120]
[343008852,1732273843352,-472.0,0.0009589,120]
[343008853,1732273843364,-12169.59529502,0.00097,120]
[343008854,1732273843378,-7813.38963209,0.00097,120]
[343008855,1732273843415,-317.38553992,0.00097,120]
[343008856,1732273843536,-4676.00402185,0.00097,120]
[343008857,1732273843547,-2426.25707357,0.00097,120]
[343008858,1732273843559,-3628.74281884,0.00097,120]
[343008859,1732273843570,-5976.61948019,0.00097,120]
[343008860,1732273843723,-612.47104377,0.00097,120]
[343008863,1732273846305,-472.0,0.0009589,120]
[343008864,1732273846315,-356.566458,0.0009589,120]
[343008865,1732273846374,-115.433542,0.0009589,120]
[343008866,1732273846384,-472.0,0.0009589,120]
[343008867,1732273846394,-472.0,0.0009589,120]
[343008868,1732273846404,-472.0,0.0009589,120]
[343008869,1732273846414,-287.05483276,0.0009589,120]
[343008870,1732273846438,-184.94516724,0.0009589,120]
[343008871,1732273846448,-389.05080276,0.0009589,120]
[343008872,1732273846628,-82.94919724,0.0009589,120]
[343008873,1732273846639,-472.0,0.0009589,120]
[343008874,1732273846649,-472.0,0.0009589,120]
[343008875,1732273846659,-500.0,0.00096986,120]
[343008876,1732273846668,-4106.96484879,0.00097,120]
[343008877,1732273846681,-982.13,0.00097,120]
[343008881,1732273905109,150.0,0.00060782,30]
[343008883,1732273971711,700.967602,0.000428,30]
[343008884,1732274033182,159.98,0.00041096,2]
[343008885,1732274050127,151.0,0.0003,120]
[343008886,1732274334729,500.0,0.0005001,2]
[343008887,1732274462929,800.0,0.00026986,120]
[343008889,1732274707838,944.36,0.00046247,120]
[343008891,1732274790724,2005.0,0.00050009,2]
[343008892,1732274831139,-888.0,0.00050082,120]
[343008893,1732274831164,-150.0,0.00057476,2]
[343008894,1732274831187,-300.0,0.00058849,15]
[343008895,1732274831209,-6403.07728617,0.0005885,120]
[343008896,1732274831653,200.0,9.6e-05,2]
[343008897,1732274834140,-450.1820373,0.0005885,120]
[343008898,1732274839121,-2515.49088684,0.0005885,120]
[343008899,1732274850103,-340.58187721,0.0005885,120]
[343008900,1732274888552,170.29684411,0.000477,120]
[343008901,1732274917825,5009.8338373,0.000232,2]
[343008905,1732274945103,-981.92718697,0.0005885,120]
[343008906,1732274945125,-3457.089454,0.0006,120]
[343008907,1732274945148,-150.0,0.00060492,30]
[343008908,1732274945171,-834.38020899,0.0006154,120]
[343008909,1732274945192,-1590.68533612,0.00061989,120]
[343008910,1732274945214,-2456.61810372,0.00065,120]
[343008911,1732274945236,-474.7060718,0.000658,120]
[343008912,1732274945257,-6206.58289256,0.0006588,30]
[343008913,1732274945280,-300.0,0.00066,120]
[343008914,1732274945300,-19462.03742584,0.000669,120]
[343008915,1732274950188,-10537.96257316,0.000669,120]
[343008916,1732274950209,-1493.0,0.0007,30]
[343008917,1732274950235,-250.0,0.0007,120]
[343008918,1732274950257,-251.71320811,0.0008,120]
[343008919,1732274950279,-29372.60833873,0.0008,30]
[343008920,1732274955108,-39566.78768518,0.0008,30]
[343008921,1732274963130,-2731.291458,0.0008,30]
[343008922,1732274966122,-16716.91619702,0.0008,30]
[343008923,1732274967111,-1456.98,0.00086955,120]
[343008924,1732274967133,-250.0,0.00086989,120]
[343008968,1732275032381,-1710.21777686,0.00043692,4]
[343008971,1732275032394,-405.35,0.00043692,4]
[343008977,1732275032579,-9441.73785334,0.00043692,4]
[343008978,1732275032592,-25894.23859414,0.00043692,4]
[343008979,1732275032601,-279.24,0.00087798,2]
[343008980,1732275032611,-300.0,0.00087999,20]
[343008981,1732275032620,-10119.07772198,0.00088,120]
[343008982,1732275032631,-8500.03144032,0.00088,120]
[343008983,1732275032642,-4348.28471647,0.00088,120]
[343008984,1732275032653,-1335.22253077,0.00088,120]
[343008985,1732275032662,-184.06,0.00088374,120]
[343008986,1732275032672,-6656.15608278,0.00088951,120]
[343008987,1732275032681,-402.23,0.0008905,120]
[343008988,1732275032690,-150.0,0.00089128,120]
[343008989,1732275032700,-6232.74070819,0.00089137,30]
[343008990,1732275032711,-5556.80186094,0.00089137,30]
[343008999,1732275038503,-4702.39383998,0.00089137,30]
[343009000,1732275038514,-800.48095568,0.00089137,30]
[343009001,1732275038525,-6607.58263521,0.00089137,30]
[343009002,1732275038535,-250.0,0.00089175,120]
[343009003,1732275038544,-250.0,0.0008953,120]
[343009004,1732275038553,-161.12,0.0008953,120]
[343009005,1732275038564,-812.74,0.00089562,30]
[343009006,1732275038574,-282.75,0.00089822,6]
[343009007,1732275038583,-309.3384,0.00089899,2]
[343009008,1732275038594,-6635.0392,0.000899,120]
[343009009,1732275038603,-189.316,0.000899,120]
[343009010,1732275038613,-1870.403,0.000899,120]
[343009011,1732275038622,-1484.593,0.000899,2]
[343009012,1732275038631,-263.7786,0.000899,2]
[343009013,1732275038641,-2898.8718,0.000899,2]
[343009014,1732275038650,-261.14209205,0.000899,120]
[343009015,1732275038659,-1947.6853,0.00089973,30]
[343009016,1732275038669,-8307.97684029,0.00089999,2]
[343009017,1732275038678,-53768.8311692,0.0009,120]
[343009018,1732275038687,-1300.0,0.0009,120]
[343009019,1732275038696,-10000.0,0.0009,120]
[343009020,1732275038705,-2000.0,0.0009,120]
[343009021,1732275038714,-4000.0,0.0009,3]
[343009022,1732275038723,-5615.95265017,0.0009,4]
[343009023,1732275038732,-1451.55,0.00090011,120]
[343009024,1732275038742,-279.24,0.00090062,2]
[343009025,1732275038751,-500.0,0.00090574,120]
[343009026,1732275038759,-602.16,0.00090682,120]
[343009027,1732275038768,-50000.0,0.00091,120]
[343009028,1732275038778,-70714.65,0.00091,120]
[343009029,1732275038787,-564.0,0.00091044,120]
[343009030,1732275038795,-160.082,0.00091044,120]
[343009031,1732275038805,-159.18,0.0009122,120]
[343009032,1732275038814,-150.0,0.00091245,120]
[343009033,1732275038823,-167.28,0.00091722,2]
[343009034,1732275038832,-1172.5669,0.000919,120]
[343009035,1732275038844,-50000.0,0.00092,120]
[343009036,1732275038854,-279.24,0.00092325,2]
[343009037,1732275038866,-1000.0,0.00092851,120]
[343009038,1732275038875,-320.13756822,0.000929,2]
[343009039,1732275038884,-206.87763278,0.000929,64]
[343009040,1732275038895,-50000.0,0.00093,120]
[343009041,1732275038904,-18177.43358977,0.00093,120]
[343009042,1732275038913,-40847.43996761,0.00094,120]
[343009044,1732275038925,-452.50000244,0.00094,120]
[343009048,1732275038959,-241.41029227,0.00094,120]
[343009050,1732275038970,-292.42,0.00094,120]
[343009051,1732275038983,-345.0,0.00094,120]
[343009053,1732275038994,-4071.03425274,0.00094,120]
[343009054,1732275039006,-2719.33289478,0.00094,120]
[343009055,1732275039018,-1030.86259016,0.00094,120]
[343009056,1732275039027,-279.24,0.00094589,2]
[343009058,1732275039036,-327.07,0.00094714,2]
[343009059,1732275039045,-2495.13199,0.00094876,120]
[343009060,1732275039054,-1220.76290022,0.00094925,120]
[343009061,1732275039066,-649.64009978,0.00094925,120]
[343009062,1732275039075,-2706.14243677,0.00095,120]
[343009063,1732275039086,-9364.42115503,0.00095,120]
[343009064,1732275039100,-6821.36831515,0.00095,120]
[343009065,1732275039111,-11148.65977344,0.00095,120]
[343009066,1732275039123,-714.20613285,0.00095,120]
[343009067,1732275039134,-869.45897463,0.00095,120]
[343009068,1732275039146,-721.90000001,0.00095,120]
[343009069,1732275039157,-2866.86106102,0.00095,120]
[343009070,1732275039168,-488.66430191,0.00095,120]
[343009071,1732275039179,-7134.00005,0.00095,120]
[343009072,1732275039190,-57164.31779919,0.00095,120]
[343009073,1732275039199,-2624.36527743,0.00095,30]
[343009074,1732275039209,-1928.0,0.00095056,30]
[343009075,1732275039219,-170.21,0.00095654,30]
[343009076,1732275039228,-157.65,0.0009588,120]
[343009077,1732275039238,-419.0,0.0009589,120]
[343009078,1732275039247,-419.0,0.0009589,120]
[343009079,1732275039257,-419.0,0.0009589,120]
[343009080,1732275039267,-419.0,0.0009589,120]
[343009081,1732275039277,-419.0,0.0009589,120]
[343009082,1732275039286,-419.0,0.0009589,120]
[343009083,1732275039295,-419.0,0.0009589,120]
[343009084,1732275039304,-419.0,0.0009589,120]
[343009085,1732275039313,-419.0,0.0009589,120]
[343009086,1732275039323,-419.0,0.0009589,120]
[343009087,1732275039332,-419.0,0.0009589,120]
[343009088,1732275039341,-419.0,0.0009589,120]
[343009089,1732275039352,-419.0,0.0009589,120]
[343009090,1732275039361,-419.0,0.0009589,120]
[343009091,1732275039370,-419.0,0.0009589,120]
[343009092,1732275039379,-419.0,0.0009589,120]
[343009093,1732275039388,-419.0,0.0009589,120]
[343009094,1732275039397,-419.0,0.0009589,120]
[343009095,1732275039407,-419.0,0.0009589,120]
[343009096,1732275039416,-419.0,0.0009589,120]
[343009097,1732275039425,-419.0,0.0009589,120]
[343009098,1732275039434,-419.0,0.0009589,120]
[343009099,1732275039443,-419.0,0.0009589,120]
[343009100,1732275039452,-419.0,0.0009589,120]
[343009101,1732275039462,-419.0,0.0009589,120]
[343009102,1732275039471,-419.0,0.0009589,120]
[343009103,1732275039480,-419.0,0.0009589,120]
[343009104,1732275039489,-419.0,0.0009589,120]
[343009105,1732275039498,-419.0,0.0009589,120]
[343009106,1732275039507,-419.0,0.0009589,120]
[343009107,1732275039516,-419.0,0.0009589,120]
[343009108,1732275039526,-419.0,0.0009589,120]
[343009109,1732275039535,-419.0,0.0009589,120]
[343009110,1732275039545,-419.0,0.0009589,120]
[343009111,1732275039554,-419.0,0.0009589,120]
[343009112,1732275039563,-419.0,0.0009589,120]
[343009113,1732275039573,-419.0,0.0009589,120]
[343009114,1732275039582,-419.0,0.0009589,120]
[343009115,1732275039594,-419.0,0.0009589,120]
[343009116,1732275039604,-419.0,0.0009589,120]
[343009117,1732275039613,-419.0,0.0009589,120]
[343009118,1732275039622,-419.0,0.0009589,120]
[343009119,1732275039630,-419.0,0.0009589,120]
[343009120,1732275039640,-419.0,0.0009589,120]
[343009121,1732275039649,-419.0,0.0009589,120]
[343009122,1732275039659,-419.0,0.0009589,120]
[343009123,1732275039667,-419.0,0.0009589,120]
[343009124,1732275039676,-419.0,0.0009589,120]
[343009125,1732275039685,-419.0,0.0009589,120]
[343009126,1732275039694,-419.0,0.0009589,120]
[343009127,1732275039703,-419.0,0.0009589,120]
[343009128,1732275039713,-419.0,0.0009589,120]
[343009129,1732275039722,-419.0,0.0009589,120]
[343009130,1732275039731,-419.0,0.0009589,120]
[343009131,1732275039740,-419.0,0.0009589,120]
[343009132,1732275039749,-419.0,0.0009589,120]
[343009133,1732275039759,-419.0,0.0009589,120]
[343009134,1732275039768,-419.0,0.0009589,120]
[343009135,1732275039777,-419.0,0.0009589,120]
[343009136,1732275039786,-419.0,0.0009589,120]
[343009137,1732275039795,-419.0,0.0009589,120]
[343009138,1732275039804,-419.0,0.0009589,120]
[343009139,1732275039813,-419.0,0.0009589,120]
[343009140,1732275039822,-419.0,0.0009589,120]
[343009141,1732275039831,-419.0,0.0009589,120]
[343009142,1732275039840,-419.0,0.0009589,120]
[343009143,1732275039851,-419.0,0.0009589,120]
[343009144,1732275039863,-419.0,0.0009589,120]
[343009145,1732275039873,-419.0,0.0009589,120]
[343009146,1732275039882,-419.0,0.0009589,120]
[343009147,1732275039891,-419.0,0.0009589,120]
[343009148,1732275039901,-419.0,0.0009589,120]
[343009149,1732275039910,-419.0,0.0009589,120]
[343009150,1732275039919,-419.0,0.0009589,120]
[343009151,1732275039930,-419.0,0.0009589,120]
[343009152,1732275039940,-419.0,0.0009589,120]
[343009153,1732275039949,-419.0,0.0009589,120]
[343009154,1732275039958,-419.0,0.0009589,120]
[343009155,1732275039967,-419.0,0.0009589,120]
[343009156,1732275039977,-419.0,0.0009589,120]
[343009157,1732275039987,-419.0,0.0009589,120]
[343009158,1732275039997,-419.0,0.0009589,120]
[343009159,1732275040006,-419.0,0.0009589,120]
[343009160,1732275040016,-419.0,0.0009589,120]
[343009161,1732275040025,-419.0,0.0009589,120]
[343009162,1732275040034,-419.0,0.0009589,120]
[343009163,1732275040045,-419.0,0.0009589,120]
[343009164,1732275040055,-419.0,0.0009589,120]
[343009165,1732275040064,-419.0,0.0009589,120]
[343009166,1732275040074,-419.0,0.0009589,120]
[343009167,1732275040084,-419.0,0.0009589,120]
[343009168,1732275040095,-419.0,0.0009589,120]
[343009169,1732275040104,-419.0,0.0009589,120]
[343009170,1732275040114,-419.0,0.0009589,120]
[343009171,1732275040123,-419.0,0.0009589,120]
[343009172,1732275040133,-419.0,0.0009589,120]
[343009173,1732275040142,-419.0,0.0009589,120]
[343009174,1732275040152,-430.0,0.0009589,120]
[343009175,1732275040161,-430.0,0.0009589,120]
[343009176,1732275040171,-430.0,0.0009589,120]
[343009177,1732275040180,-205.8904154,0.000959,30]
[343009178,1732275040189,-21366.13265894,0.00096,120]
[343009179,1732275040199,-21204.05169625,0.00096,120]
[343009180,1732275040209,-4695.63827759,0.00096,120]
[343009181,1732275040219,-534.84933,0.0009603,120]
[343009182,1732275040229,-193.39,0.00096085,120]
[343009184,1732275040238,-534.84933,0.0009612,120]
[343009185,1732275040248,-534.84934,0.0009643,120]
[343009186,1732275040258,-600.0,0.000966,35]
[343009187,1732275040267,-1200.0,0.000967,35]
[343009188,1732275040276,-534.84933,0.0009675,120]
[343009189,1732275040285,-2500.0,0.000968,120]
[343009190,1732275040295,-1900.0,0.000968,35]
[343009191,1732275040304,-279.24,0.00096853,2]
[343009192,1732275040314,-446.8958,0.000969,2]
[343009193,1732275040323,-2500.0,0.000969,35]
[343009194,1732275040333,-500.0,0.00096973,30]
[343009195,1732275040344,-386.52,0.00096986,120]
[343009196,1732275040358,-520.967916,0.00096986,30]
[343009197,1732275040367,-500.0,0.00096986,120]
[343009198,1732275040376,-500.0,0.00096986,120]
[343009199,1732275040386,-500.0,0.00096986,120]
[343009200,1732275040396,-500.0,0.00096986,120]
[343009201,1732275040406,-387.65139404,0.00096986,120]
[343009202,1732275040416,-500.0,0.00096986,120]
[343009203,1732275040425,-168.0,0.00096986,120]
[343009204,1732275040434,-168.0,0.00096986,120]
[343009205,1732275040443,-297.06,0.00096986,120]
[343009206,1732275040453,-500.0,0.00096986,120]
[343009207,1732275040462,-500.0,0.00096986,120]
[343009208,1732275040472,-269.97650999,0.00096986,120]
[343009209,1732275040482,-500.0,0.00096986,120]
[343009210,1732275040491,-500.0,0.00096986,120]
[343009211,1732275040501,-500.0,0.00096986,120]
[343009212,1732275040510,-1000.14234939,0.00096986,120]
[343009213,1732275040519,-500.0,0.00096986,120]
[343009214,1732275040529,-500.0,0.00096986,120]
[343009215,1732275040539,-500.0,0.00096986,120]
[343009216,1732275040549,-310.77,0.00096986,120]
[343009217,1732275040559,-540.88,0.00096986,120]
[343009218,1732275040568,-537.13023649,0.00096986,120]
[343009219,1732275040578,-500.0,0.00096986,120]
[343009220,1732275040588,-500.0,0.00096986,120]
[343009221,1732275040599,-500.0,0.00096986,120]
[343009222,1732275040610,-500.0,0.00096986,120]
[343009223,1732275040619,-500.0,0.00096986,120]
[343009224,1732275040630,-500.0,0.00096986,120]
[343009225,1732275040639,-500.0,0.00096986,120]
[343009226,1732275040649,-500.0,0.00096986,120]
[343009227,1732275040658,-500.0,0.00096986,120]
[343009228,1732275040668,-500.0,0.00096986,120]
[343009229,1732275040677,-535.15082061,0.00096986,120]
[343009230,1732275040687,-500.0,0.00096986,120]
[343009231,1732275040696,-500.0,0.00096986,120]
[343009232,1732275040705,-530.09369412,0.00096986,120]
[343009233,1732275040715,-500.0,0.00096986,120]
[343009234,1732275040724,-500.0,0.00096986,120]
[343009235,1732275040733,-519.36646421,0.00096986,120]
[343009236,1732275040742,-581.97824525,0.00096986,120]
[343009237,1732275040751,-500.0,0.00096986,120]
[343009238,1732275040761,-500.0,0.00096986,120]
[343009239,1732275040771,-500.0,0.00096986,120]
[343009240,1732275040780,-500.0,0.00096986,120]
[343009241,1732275040790,-500.0,0.00096986,120]
[343009242,1732275040799,-330.61381336,0.00096986,2]
[343009243,1732275040809,-500.0,0.00096986,120]
[343009244,1732275040818,-499.52,0.00096986,120]
[343009245,1732275040828,-500.0,0.00096986,120]
[343009246,1732275040837,-639.24762097,0.00096986,120]
[343009247,1732275040848,-500.0,0.00096986,21]
[343009248,1732275040859,-500.0,0.00096986,21]
[343009249,1732275040868,-500.0,0.00096986,120]
[343009250,1732275040878,-500.0,0.00096986,120]
[343009251,1732275040887,-500.0,0.00096986,120]
[343009252,1732275040897,-500.0,0.00096986,120]
[343009253,1732275040906,-500.0,0.00096986,120]
[343009254,1732275040916,-500.0,0.00096986,120]
[343009255,1732275040925,-500.0,0.00096986,120]
[343009256,1732275040935,-500.0,0.00096986,120]
[343009257,1732275040945,-500.0,0.00096986,120]
[343009258,1732275040954,-249.44,0.00096986,120]
[343009259,1732275040964,-500.0,0.00096986,120]
[343009260,1732275040974,-503.0,0.00096986,120]
[343009261,1732275040983,-500.0,0.00096986,120]
[343009262,1732275040993,-500.0,0.00096986,120]
[343009263,1732275041002,-500.0,0.00096986,120]
[343009264,1732275041012,-500.0,0.00096986,120]
[343009265,1732275041022,-154.06501038,0.00096986,120]
[343009266,1732275041031,-176.37089523,0.00096986,120]
[343009267,1732275041041,-500.0,0.00096986,120]
[343009268,1732275041050,-500.0,0.00096986,120]
[343009269,1732275041059,-500.0,0.00096986,120]
[343009270,1732275041068,-500.0,0.00096986,120]
[343009271,1732275041077,-500.0,0.00096986,120]
[343009272,1732275041087,-500.0,0.00096986,120]
[343009273,1732275041098,-523.30513843,0.00096986,120]
[343009274,1732275041107,-500.0,0.00096986,120]
[343009275,1732275041117,-500.0,0.00096986,7]
[343009276,1732275041127,-565.56015367,0.00096986,7]
[343009277,1732275041136,-500.0,0.00096986,120]
[343009278,1732275041146,-500.0,0.00096986,120]
[343009279,1732275041155,-500.0,0.00096986,120]
[343009280,1732275041165,-394.10093253,0.00096986,120]
[343009281,1732275041175,-502.01237291,0.00096986,120]
[343009282,1732275041184,-498.19314701,0.00096986,120]
[343009283,1732275041194,-500.0,0.00096986,120]
[343009284,1732275041204,-500.0,0.00096986,120]
[343009285,1732275041214,-500.0,0.00096986,120]
[343009286,1732275041223,-500.0,0.00096986,120]
[343009287,1732275041233,-500.0,0.00096986,120]
[343009288,1732275041243,-500.0,0.00096986,120]
[343009289,1732275041253,-500.0,0.00096986,120]
[343009290,1732275041262,-500.0,0.00096986,120]
[343009291,1732275041271,-525.24937074,0.00096986,120]
[343009292,1732275041280,-516.15,0.00096986,120]
[343009293,1732275041289,-500.0,0.00096986,120]
[343009294,1732275041299,-514.21,0.00096986,120]
[343009295,1732275041308,-500.0,0.00096986,120]
[343009296,1732275041317,-500.0,0.00096986,120]
[343009297,1732275041326,-500.0,0.00096986,120]
[343009298,1732275041336,-568.35021534,0.00096986,120]
[343009299,1732275041347,-252.2473929,0.00096986,120]
[343009300,1732275041356,-500.0,0.00096986,120]
[343009301,1732275041366,-500.0,0.00096986,120]
[343009302,1732275041375,-500.0,0.00096986,120]
[343009303,1732275041385,-501.44,0.00096986,120]
[343009304,1732275041395,-500.0,0.00096986,120]
[343009305,1732275041404,-500.0,0.00096986,120]
[343009306,1732275041413,-500.0,0.00096986,120]
[343009307,1732275041423,-500.0,0.00096986,120]
[343009308,1732275041432,-500.0,0.00096986,120]
[343009309,1732275041560,-500.0,0.00096986,120]
[343009310,1732275041570,-500.0,0.00096986,120]
[343009311,1732275041579,-500.0,0.00096986,120]
[343009312,1732275041588,-500.0,0.00096986,120]
[343009313,1732275041599,-500.0,0.00096986,120]
[343009314,1732275041608,-500.0,0.00096986,120]
[343009315,1732275041617,-500.0,0.00096986,120]
[343009316,1732275041627,-569.5,0.00096986,120]
[343009317,1732275041636,-344.48183189,0.00096986,120]
[343009318,1732275041645,-500.0,0.00096986,120]
[343009319,1732275041654,-500.0,0.00096986,120]
[343009320,1732275041663,-500.0,0.00096986,120]
[343009321,1732275041672,-500.0,0.00096986,120]
[343009322,1732275041682,-500.0,0.00096986,120]
[343009323,1732275041691,-253.23493998,0.00096986,120]
[343009324,1732275041699,-500.0,0.00096986,120]
[343009325,1732275041708,-500.0,0.00096986,120]
[343009326,1732275041717,-500.0,0.00096986,120]
[343009327,1732275041726,-157.70168644,0.00096986,120]
[343009328,1732275041735,-500.0,0.00096986,120]
[343009329,1732275041745,-500.0,0.00096986,120]
[343009330,1732275041754,-500.0,0.00096986,120]
[343009331,1732275041763,-500.0,0.00096986,120]
[343009332,1732275041772,-150.0,0.00096986,120]
[343009333,1732275041781,-150.0,0.00096986,120]
[343009334,1732275041790,-150.0,0.00096986,120]
[343009335,1732275041799,-500.0,0.00096993,120]
[343009336,1732275041808,-500.0,0.00096993,120]
[343009337,1732275041817,-500.0,0.00096993,120]
[343009338,1732275041826,-582.49,0.00096993,120]
[343009339,1732275041835,-214.78,0.00096993,120]
[343009340,1732275041845,-500.0,0.00096993,120]
[343009341,1732275041860,-657.419297,0.00096997,15]
[343009342,1732275041870,-2469.2493015,0.00096997,15]
[343009343,1732275041879,-7679.1228632,0.00096997,15]
[343009344,1732275041888,-941.4182352,0.00096997,15]
[343009345,1732275041897,-539.554033,0.00096997,15]
[343009346,1732275041907,-612.82705875,0.00096999,120]
[343009347,1732275041916,-398.07597102,0.00096999,120]
[343009348,1732275041926,-500.0,0.00096999,120]
[343009349,1732275041935,-500.0,0.00096999,120]
[343009350,1732275041944,-500.0,0.00096999,120]